[Event "KAZ-ch Open 2019"]
[Site "Almaty"]
[Date "2019.05.01"]
[Round "10.3"]
[White "Ibrayev, Nurlan"]
[Black "Zhalmakhanov, Ramazan"]
[Result "1-0"]
[ECO "D43"]
[WhiteElo "2379"]
[BlackElo "2346"]
[Annotator "NA"]
[PlyCount "99"]
[EventDate "2019.04.21"]
[EventType "tourn"]
[EventCountry "KAZ"]
[SourceTitle "playchess.com"]
[Source "ChessBase"]
[SourceQuality "1"]
[TimeControl "40/5400+30:1800+30"]

1. d4 {[%emt 0:03:30]} Nf6 {[%emt 0:00:00]} 2. Nf3 {[%emt 0:00:32]} d5 {[%emt 0:00:20]} 3. c4 {[%emt 0:00:08]} e6 {[%emt 0:01:07]} 4. Nc3 {[%emt 0:00:13]} c6 {[%emt 0:01:28]} 5. Bg5 {[%emt 0:00:22]} h6 {[%emt 0:00:18]} 6. Bxf6 {[%emt 0:00:16]} Qxf6 {[%emt 0:00:06]} 7. e4 {[%emt 0:00:04]} dxe4 {[%emt 0:04:29]} 8. Nxe4 {[%emt 0:00:18]} Bb4+ {[%emt 0:01:47]} 9. Ke2 {[%emt 0:00:09]} Qf5 {[%emt 0:13:09] D43: Semi-Slav: 5 Bg5 h6} (9... Qf4 10. Qc2 f5 11. Nc3 c5 12. g3 Qg4 13. h3 Qh5 14. a3 Bxc3 15. Qxc3 cxd4 16. Qxd4 O-O 17. Bg2 Nc6 18. Qh4 Qf7 19. Rhd1 e5 20. Rac1 e4 21. Nd4 Ne5 22. Kf1 Kh7 {0-1 (22) Teske,H (2483)-Vitiugov,N (2719) St Petersburg 2018}) 10. Ke3 $146 {[%emt 0:37:28]} ({Predecessor:} 10. Qd3 O-O 11. g3 Nd7 12. Bg2 e5 13. a3 Be7 14. h4 exd4 15. Nxd4 Qe5 16. f4 Qc7 17. b4 {0-1 (32) Jelfs,A (1909)-Ankit,R (2511) Glasgow 2014}) 10... O-O {[%emt 0:33:47]} 11. c5 {[%emt 0:27:58]} Ba5 {[%emt 0:08:59]} 12. g4 {[%emt 0:02:35]} Qd5 {[%emt 0:08:20]} 13. Ne5 {[%emt 0:08:56]} b6 {[%emt 0:04:04]} 14. Bc4 {[%emt 0:00:34]} Qd8 {[%emt 0:00:06]} 15. h4 {[%emt 0:01:42]} bxc5 {[%emt 0:00:24]} 16. dxc5 {[%emt 0:00:39]} Bc7 {[%emt 0:04:56] [#]} 17. Qxd8 $1 {[%emt 0:00:21]} Rxd8 {[%emt 0:00:05]} 18. Rad1 {[%emt 0:00:13]} f6 {[%emt 0:02:47]} 19. Rxd8+ {[%emt 0:00:44]} Bxd8 {[%emt 0:00:05]} 20. Rd1 {[%emt 0:02:59]} Bc7 {[%emt 0:00:09]} 21. Nd6 {[%emt 0:00:19]} fxe5 {[%emt 0:02:35]} 22. Nxc8 {[%emt 0:00:09]} Kf7 {[%emt 0:00:10]} 23. Rd3 {[%emt 0:05:09]} a5 {[%emt 0:00:55]} 24. Ke4 {[%emt 0:03:13]} a4 {[%emt 0:01:09]} 25. Rf3+ {[%emt 0:00:38]} Ke8 {[%emt 0:00:00]} 26. Bxe6 {[%emt 0:01:41]} Na6 {[%emt 0:00:11]} 27. Nd6+ {[%emt 0:00:25]} Ke7 {[%emt 0:00:48]} 28. Kxe5 {[%emt 0:00:38]} Nxc5 $2 {[%emt 0:00:49]} (28... Rf8 29. Rxf8 Kxf8) 29. Rf7+ {[%emt 0:00:24] Double Attack} Kd8 {[%emt 0:00:01]} 30. Rf8+ {[%emt 0:01:16]} Ke7 {[%emt 0:00:02]} 31. Rf7+ {[%emt 0:00:06]} Kd8 {[%emt 0:00:01]} 32. Rf8+ {[%emt 0:00:41]} Ke7 {[%emt 0:00:01]} 33. Rxa8 {[%emt 0:00:01]} Bxd6+ {[%emt 0:00:22]} 34. Kf5 {[%emt 0:00:08]} Nxe6 {[%emt 0:00:04]} 35. Rxa4 {[%emt 0:00:09]} Kd7 {[%emt 0:01:55]} 36. f4 {[%emt 0:01:18]} c5 {[%emt 0:01:34]} 37. Ra7+ {[%emt 0:01:03]} Nc7 {[%emt 0:01:33]} 38. Ra4 {[%emt 0:00:22]} Nd5 {[%emt 0:00:44]} 39. Ra7+ {[%emt 0:00:12]} Bc7 {[%emt 0:01:02]} 40. Kg6 {[%emt 0:00:00]} Kc6 {[%emt 0:00:00]} 41. f5 {[%emt 0:08:24]} Be5 {[%emt 0:01:33]} 42. b3 {[%emt 0:00:10]} Kd6 {[%emt 0:01:06]} 43. Rxg7 {[%emt 0:05:23]} Bxg7 {[%emt 0:00:23]} 44. Kxg7 {[%emt 0:00:01]} Ke5 {[%emt 0:02:09]} 45. a4 {[%emt 0:00:15]} Kd4 {[%emt 0:03:16]} 46. a5 {[%emt 0:00:18]} Kc3 {[%emt 0:00:20]} 47. f6 {[%emt 0:00:35]} Nc7 {[%emt 0:00:31]} 48. f7 {[%emt 0:00:12]} Ne6+ {[%emt 0:00:12]} 49. Kf6 {[%emt 0:00:10]} Nf8 {[%emt 0:00:24]} 50. a6 {[%emt 0:00:05]} 1-0

[Event "KAZ-ch Open 2019"]
[Site "Almaty"]
[Date "2019.05.01"]
[Round "10.4"]
[White "Nogerbek, Kazybek"]
[Black "Moisseyenko, Ilya"]
[Result "1/2-1/2"]
[ECO "B94"]
[WhiteElo "2318"]
[BlackElo "2329"]
[Annotator "NA"]
[PlyCount "99"]
[EventDate "2019.04.21"]
[EventType "tourn"]
[EventCountry "KAZ"]
[SourceTitle "playchess.com"]
[Source "ChessBase"]
[SourceQuality "1"]
[TimeControl "40/5400+30:1800+30"]

1. e4 {[%emt 0:00:00]} c5 {[%emt 0:00:00]} 2. Nf3 {[%emt 0:00:00]} d6 {[%emt 0:00:00]} 3. d4 {[%emt 0:00:00]} cxd4 {[%emt 0:00:00]} 4. Nxd4 {[%emt 0:00:00]} Nf6 {[%emt 0:00:00]} 5. Nc3 {[%emt 0:00:00]} a6 {[%emt 0:00:21]} 6. Bg5 {[%emt 0:00:00]} Nbd7 {[%emt 0:00:30]} 7. Qe2 {[%emt 0:00:06] B94: Sicilian Najdorf: 6 Bg5 Nbd7} e6 {[%emt 0:01:34]} 8. f4 {[%emt 0:01:13]} Qc7 {[%emt 0:00:13]} (8... h6 9. Bh4 e5 10. fxe5 dxe5 11. Nf5 Nb6 12. Qf3 Bxf5 13. Qxf5 Be7 14. Bd3 Nfd7 15. Bxe7 Qxe7 16. O-O-O O-O 17. Kb1 Nc5 18. Be2 Rad8 19. Qf2 Qc7 20. Qe3 Qc6 21. Rhe1 Rfe8 22. a3 Kf8 {½-½ (22) Anand,V (2773)-Nepomniachtchi,I (2763) Wijk aan Zee 2019}) 9. g4 {[%emt 0:00:36]} b5 {[%emt 0:05:11]} 10. a3 {[%emt 0:03:01]} Bb7 {[%emt 0:00:36]} 11. Bg2 {[%emt 0:00:06]} Be7 {[%emt 0:00:30]} 12. O-O-O {[%emt 0:01:08]} h6 {[%emt 0:09:27]} 13. Bxf6 {[%emt 0:01:11]} gxf6 {[%emt 0:00:16]} 14. h4 {[%emt 0:01:53]} O-O-O $146 {[%emt 0:04:49]} ({Predecessor:} 14... Nb6) 15. Rh3 {[%emt 0:01:17]} Kb8 {[%emt 0:01:16]} 16. f5 {[%emt 0:01:08]} e5 {[%emt 0:00:31]} 17. Nb3 {[%emt 0:00:07]} Nb6 {[%emt 0:00:42]} 18. Na5 {[%emt 0:03:38]} Ba8 {[%emt 0:02:42]} 19. Qd2 {[%emt 0:03:22]} Rc8 {[%emt 0:05:32]} 20. Nd5 {[%emt 0:05:38]} Nxd5 {[%emt 0:03:49]} 21. exd5 {[%emt 0:02:20]} h5 {[%emt 0:06:14]} 22. Nc6+ {[%emt 0:21:09]} Bxc6 {[%emt 0:00:17]} 23. dxc6 {[%emt 0:00:04]} hxg4 {[%emt 0:05:31]} 24. Rb3 {[%emt 0:00:11]} d5 {[%emt 0:00:09]} 25. Bxd5 {[%emt 0:03:42]} Rxh4 {[%emt 0:01:45]} 26. c4 {[%emt 0:06:28]} Rh3 {[%emt 0:00:48]} 27. Rxh3 {[%emt 0:00:31]} gxh3 {[%emt 0:00:04]} 28. cxb5 {[%emt 0:00:06]} axb5 {[%emt 0:00:06]} 29. Qd3 {[%emt 0:00:12]} Qb6 {[%emt 0:01:39]} 30. Qxh3 {[%emt 0:02:16]} Rd8 {[%emt 0:04:54]} 31. Qb3 {[%emt 0:01:31]} Kc7 {[%emt 0:00:31]} 32. Kb1 {[%emt 0:01:47]} Qc5 {[%emt 0:08:25]} 33. Rd3 {[%emt 0:06:48]} Bf8 {[%emt 0:13:12]} 34. Be4 {[%emt 0:04:35]} Rxd3 {[%emt 0:07:41]} 35. Bxd3 {[%emt 0:00:31]} Kxc6 {[%emt 0:00:34]} 36. Qxf7 {[%emt 0:00:29]} Be7 {[%emt 0:03:31]} 37. Qe8+ {[%emt 0:04:49]} Kb6 $14 {[%emt 0:00:16]} 38. Qb8+ {[%emt 0:04:29]} Kc6 {[%emt 0:00:23]} 39. Be4+ {[%emt 0:02:58]} Kd7 {[%emt 0:00:08]} 40. Qb7+ {[%emt 0:00:00]} Kd6 {[%emt 0:00:00]} 41. Bd3 {[%emt 0:00:53]} Qc6 {[%emt 0:09:12]} 42. Qxb5 {[%emt 0:05:22]} Qxb5 {[%emt 0:00:09]} 43. Bxb5 {[%emt 0:00:05]} e4 {[%emt 0:00:36]} 44. Kc2 {[%emt 0:00:19]} Ke5 {[%emt 0:00:04]} 45. Bd7 {[%emt 0:00:06]} Kd4 {[%emt 0:01:21]} 46. b4 {[%emt 0:00:48]} e3 {[%emt 0:01:24]} 47. Bb5 {[%emt 0:00:11]} Bd6 {[%emt 0:00:09]} 48. Be2 {[%emt 0:02:44]} Ke4 {[%emt 0:00:06]} 49. Bd3+ {[%emt 0:01:27]} Kd4 {[%emt 0:00:50]} 50. Be2 {[%emt 0:06:42]} 1/2-1/2

[Event "KAZ-ch Open 2019"]
[Site "Almaty"]
[Date "2019.05.01"]
[Round "10.6"]
[White "Kazhgaleyev, Murtas"]
[Black "Makhnev, Denis"]
[Result "1/2-1/2"]
[ECO "D37"]
[WhiteElo "2578"]
[BlackElo "2483"]
[Annotator "ChessBase"]
[PlyCount "139"]
[EventDate "2019.04.21"]
[EventType "tourn"]
[EventCountry "KAZ"]
[SourceTitle "playchess.com"]
[Source "ChessBase"]
[SourceQuality "1"]
[TimeControl "40/5400+30:1800+30"]

1. d4 {[%emt 0:02:44]} d5 {[%emt 0:00:00]} 2. Nf3 {[%emt 0:00:10]} Nf6 {[%emt 0:00:00]} 3. c4 {[%emt 0:00:04]} e6 {[%emt 0:00:00]} 4. Nc3 {[%emt 0:00:05]} dxc4 {[%emt 0:00:05]} 5. Qa4+ {[%emt 0:00:49]} c6 {[%emt 0:00:09]} 6. Qxc4 {[%emt 0:00:04]} b5 {[%emt 0:00:07]} 7. Qd3 {[%emt 0:00:02]} Bb7 {[%emt 0:04:48]} 8. e4 {[%emt 0:00:26]} b4 {[%emt 0:00:05]} 9. Na4 {[%emt 0:00:06]} Qa5 {[%emt 0:00:05]} 10. b3 {[%emt 0:00:41]} Nbd7 {[%emt 0:00:06]} 11. Be3 {[%emt 0:03:05]} c5 {[%emt 0:03:22]} 12. dxc5 {[%emt 0:04:24]} Bxe4 {[%emt 0:03:32]} 13. Qb5 {[%emt 0:01:20]} Qxb5 {[%emt 0:02:30]} 14. Bxb5 {[%emt 0:00:05]} Rb8 {[%emt 0:00:08]} 15. Ba6 {[%emt 0:07:38]} Ng4 {[%emt 0:02:18]} 16. Bf4 {[%emt 0:09:57]} e5 {[%emt 0:00:05]} 17. Bg3 {[%emt 0:00:52]} f6 {[%emt 0:01:14]} 18. Rc1 {[%emt 0:05:28]} Bc6 {[%emt 0:00:08]} 19. O-O {[%emt 0:00:14]} Nh6 {[%emt 0:02:54]} 20. Bd3 {[%emt 0:09:26]} Be7 {[%emt 0:03:54]} 21. Rfe1 {[%emt 0:01:07]} Rd8 {[%emt 0:14:00]} 22. Be4 {[%emt 0:06:03]} Bxa4 {[%emt 0:00:06]} 23. c6 {[%emt 0:05:46]} Bxc6 {[%emt 0:20:52]} 24. Bxc6 {[%emt 0:06:17]} O-O {[%emt 0:00:13]} 25. Bd5+ {[%emt 0:02:12]} Kh8 {[%emt 0:00:38]} 26. Rc7 {[%emt 0:00:45]} Nb6 {[%emt 0:00:25]} 27. Bc6 {[%emt 0:11:48]} Nc8 {[%emt 0:04:52]} 28. Rc1 {[%emt 0:05:59]} Bd6 {[%emt 0:00:58]} 29. Rb7 {[%emt 0:00:35]} Ne7 {[%emt 0:00:20]} 30. Bd7 {[%emt 0:02:30]} Ng6 {[%emt 0:05:49]} 31. Nd2 {[%emt 0:05:30]} Rf7 {[%emt 0:02:48]} 32. Bc8 {[%emt 0:00:31]} Rxb7 {[%emt 0:08:22]} 33. Bxb7 {[%emt 0:00:02]} Bf8 {[%emt 0:00:06]} 34. Nc4 {[%emt 0:01:01]} Nf5 {[%emt 0:00:05]} 35. f3 {[%emt 0:01:05]} Bc5+ {[%emt 0:12:29]} 36. Kf1 {[%emt 0:00:07]} Be3 {[%emt 0:00:47]} 37. Nxe3 {[%emt 0:02:39]} Nxe3+ {[%emt 0:00:04]} 38. Kg1 {[%emt 0:00:12]} Nf4 {[%emt 0:00:42]} 39. Ba6 {[%emt 0:00:19]} g5 {[%emt 0:01:42]} 40. Be1 {[%emt 0:00:00]} Rd6 {[%emt 0:00:00]} 41. Bf1 {[%emt 0:06:53]} a5 {[%emt 0:07:47]} 42. g3 {[%emt 0:02:49]} Ne6 {[%emt 0:00:20]} 43. Be2 {[%emt 0:04:28]} Nd4 {[%emt 0:09:31]} 44. Rc8+ {[%emt 0:04:14]} Kg7 {[%emt 0:00:51]} 45. Kf2 {[%emt 0:00:18]} Nec2 {[%emt 0:00:18]} 46. Rc7+ {[%emt 0:07:29]} Kf8 {[%emt 0:00:07]} 47. Rxh7 {[%emt 0:03:21]} Nxe1 {[%emt 0:00:11]} 48. Kxe1 {[%emt 0:00:05]} Nc2+ {[%emt 0:00:05]} 49. Kf1 {[%emt 0:00:17]} Rd2 {[%emt 0:00:05]} 50. h4 {[%emt 0:01:43]} g4 {[%emt 0:12:35]} 51. fxg4 {[%emt 0:00:27]} e4 {[%emt 0:00:10]} 52. g5 {[%emt 0:01:13]} fxg5 {[%emt 0:02:05]} 53. hxg5 {[%emt 0:00:07]} Ne3+ {[%emt 0:03:21]} 54. Kf2 {[%emt 0:03:04]} Nf5 {[%emt 0:00:03]} 55. Ke1 {[%emt 0:03:16]} Rxa2 {[%emt 0:01:36]} 56. Bc4 {[%emt 0:00:13]} Ra1+ {[%emt 0:01:31]} 57. Kf2 {[%emt 0:01:20]} Ra2+ {[%emt 0:00:03]} 58. Ke1 {[%emt 0:02:52]} Ra1+ {[%emt 0:00:09]} 59. Kf2 {[%emt 0:00:21]} Ra2+ {[%emt 0:00:05]} 60. Kg1 {[%emt 0:01:22]} Ne3 {[%emt 0:00:04]} 61. Rf7+ {[%emt 0:00:22]} Ke8 {[%emt 0:00:14]} 62. g6 {[%emt 0:00:22]} Nxc4 {[%emt 0:01:16]} 63. bxc4 {[%emt 0:01:53]} e3 {[%emt 0:01:22]} 64. Rf3 {[%emt 0:00:39]} e2 {[%emt 0:01:43]} 65. Kf2 {[%emt 0:00:15]} Ra3 {[%emt 0:00:03]} 66. g7 {[%emt 0:00:54]} Rxf3+ {[%emt 0:00:34]} 67. Kxf3 {[%emt 0:00:01]} e1=Q {[%emt 0:00:26]} 68. g8=Q+ {[%emt 0:00:06]} Ke7 {[%emt 0:00:06]} 69. Qg5+ {[%emt 0:00:07]} Kf7 {[%emt 0:00:23]} 70. Qf5+ {[%emt 0:00:18]} 1/2-1/2